fUSD/lending_fUSD_20240121
["ID","MTS","AMOUNT","RATE_DAILY","PERIOD"]
[312444770,1705876609287,-500.0,0.00046575,31]
[312444771,1705876609321,-500.0,0.00046575,31]
[312444772,1705876609356,-500.0,0.00046575,31]
[312444773,1705876609390,-529.53,0.00046575,31]
[312444774,1705876609423,-2135.06,0.00046575,31]
[312444775,1705876609456,-524.77,0.00046575,31]
[312444776,1705876609489,-500.0,0.00046575,31]
[312444777,1705876609521,-1015.89,0.00046575,31]
[312444778,1705876609555,-863.57,0.00046575,31]
[312444779,1705876609588,-528.03,0.00046575,31]
[312444780,1705876609622,-2514.68,0.00046575,31]
[312444781,1705876609655,-748.59,0.00046575,31]
[312444782,1705876609686,-1005.16,0.00046575,31]
[312444783,1705876609718,-597.66,0.00046849,30]
[312444784,1705876609897,-400.0,0.00046904,120]
[312444785,1705876609932,-200.0,0.00046987,51]
[312444786,1705876609964,-1000.0,0.00046999,120]
[312444787,1705876610006,-300.0,0.00047,48]
[312444788,1705876610041,-2332.31785999,0.00047,120]
[312444789,1705876610080,-250.0,0.00047,30]
[312444790,1705876610115,-4000.0,0.00047,60]
[312444791,1705876610155,-1201.03207427,0.00047,120]
[312444792,1705876610193,-597.66,0.00047123,30]
[312444793,1705876610230,-500.0,0.00047123,31]
[312444794,1705876610270,-500.0,0.00047123,31]
[312444795,1705876610304,-568.04,0.00047123,31]
[312444796,1705876610339,-500.0,0.00047123,31]
[312444797,1705876610374,-523.93,0.00047123,31]
[312444798,1705876610409,-500.0,0.00047123,31]
[312444799,1705876610443,-500.0,0.00047123,31]
[312444800,1705876610482,-500.0,0.00047123,31]
[312444801,1705876610522,-500.0,0.00047123,31]
[312444802,1705876610561,-500.0,0.00047123,31]
[312444803,1705876610595,-328.71508875,0.00047123,31]
[312444804,1705876610631,-500.0,0.00047123,31]
[312444805,1705876610665,-516.25,0.00047123,31]
[312444806,1705876610698,-500.0,0.00047123,31]
[312444807,1705876610731,-579.47,0.00047123,31]
[312444808,1705876610763,-500.0,0.00047123,31]
[312444809,1705876610797,-500.0,0.00047123,31]
[312444810,1705876610842,-500.0,0.00047123,31]
[312444811,1705876610878,-338.60845218,0.00047123,31]
[312444812,1705876610912,-507.8095906,0.00047123,31]
[312444813,1705876610946,-500.0,0.00047123,31]
[312444814,1705876610980,-500.0,0.00047123,31]
[312444815,1705876611014,-500.0,0.00047123,31]
[312444816,1705876611053,-500.0,0.00047123,31]
[312444817,1705876611086,-509.28,0.00047123,31]
[312444818,1705876611121,-498.77808656,0.00047123,31]
[312444819,1705876611160,-500.0,0.00047123,31]
[312444820,1705876611197,-500.0,0.00047123,31]
[312444821,1705876611242,-500.0,0.00047123,31]
[312444822,1705876611276,-508.85,0.00047123,31]
[312444823,1705876611311,-608.21,0.00047123,31]
[312444824,1705876611346,-579.63,0.00047123,31]
[312444825,1705876611384,-500.0,0.00047123,31]
[312444826,1705876611422,-500.0,0.00047123,31]
[312444827,1705876611461,-598.31,0.00047123,31]
[312444828,1705876611497,-500.0,0.00047123,31]
[312444829,1705876611535,-500.0,0.00047123,31]
[312444830,1705876611573,-785.88,0.00047123,31]
[312444831,1705876611610,-529.13,0.00047123,31]
[312444832,1705876611647,-500.0,0.00047123,31]
[312444833,1705876611684,-500.0,0.00047123,31]
[312444834,1705876611720,-500.0,0.00047123,31]
[312444835,1705876611758,-500.0,0.00047123,31]
[312444836,1705876611795,-500.0,0.00047123,30]
[312444837,1705876611834,-500.0,0.00047123,31]
[312444838,1705876611873,-500.0,0.00047123,31]
[312444839,1705876611910,-500.0,0.00047123,31]
[312444840,1705876611948,-1369.47,0.00047123,31]
[312444841,1705876611984,-505.47,0.00047123,31]
[312444842,1705876612023,-806.13,0.00047123,31]
[312444843,1705876612059,-500.0,0.00047123,31]
[312444844,1705876612095,-500.0,0.00047123,31]
[312444845,1705876612130,-500.0,0.00047123,31]
[312444846,1705876612164,-707.32,0.00047123,31]
[312444847,1705876612197,-500.0,0.00047123,31]
[312444848,1705876612231,-500.0,0.00047123,31]
[312444849,1705876612264,-500.0,0.00047123,31]
[312444850,1705876612298,-500.0,0.00047123,31]
[312444851,1705876612332,-552.64,0.00047123,31]
[312444852,1705876612366,-500.0,0.00047123,31]
[312444853,1705876612399,-805.58,0.00047123,31]
[312444854,1705876612432,-272.59,0.00047123,31]
[312444855,1705876612465,-605.93,0.00047123,31]
[312444856,1705876612498,-1097.88,0.00047123,31]
[312444857,1705876612530,-268.08,0.00047123,30]
[312444858,1705876612563,-500.0,0.00047123,31]
[312444859,1705876612596,-845.1,0.00047123,31]
[312444860,1705876612629,-500.0,0.00047123,31]
[312444861,1705876612665,-788.32,0.00047123,31]
[312444862,1705876612698,-720.24,0.00047123,31]
[312444863,1705876612738,-521.41,0.00047123,31]
[312444864,1705876612771,-518.74,0.00047123,31]
[312444865,1705876612804,-500.0,0.00047123,31]
[312444866,1705876612838,-500.0,0.00047123,31]
[312444867,1705876612870,-500.0,0.00047123,31]
[312444868,1705876612902,-500.0,0.00047123,31]
[312444869,1705876612935,-500.0,0.00047123,31]
[312444870,1705876612968,-1173.58,0.00047123,31]
[312444871,1705876612999,-810.11,0.00047123,31]
[312444872,1705876613033,-547.76,0.00047123,31]
[312444873,1705876613066,-898.08,0.00047123,31]
[312444874,1705876613098,-500.0,0.00047123,31]
[312444875,1705876613139,-1249.82,0.00047123,31]
[312444876,1705876613173,-500.0,0.00047123,31]
[312444877,1705876613209,-644.21,0.00047123,31]
[312444878,1705876613245,-598.75,0.00047123,31]
[312444879,1705876613280,-500.0,0.00047123,31]
[312444880,1705876613316,-1092.57,0.00047123,31]
[312444881,1705876613351,-1011.23,0.00047123,31]
[312444882,1705876613384,-860.96,0.00047123,31]
[312444883,1705876613417,-500.0,0.00047123,31]
[312444884,1705876613450,-500.0,0.00047123,31]
[312444885,1705876613483,-500.0,0.00047123,31]
[312444886,1705876613516,-1118.43,0.00047123,31]
[312444887,1705876613549,-749.11,0.00047123,31]
[312444888,1705876613761,-500.0,0.00047123,31]
[312444889,1705876613799,-731.16,0.00047123,31]
[312444890,1705876613834,-723.92,0.00047123,31]
[312444891,1705876613869,-500.0,0.00047123,31]
[312444892,1705876613908,-500.0,0.00047123,31]
[312444893,1705876613944,-500.0,0.00047123,31]
[312444894,1705876613977,-500.0,0.00047123,31]
[312444895,1705876614011,-654.99,0.00047123,31]
[312444896,1705876614046,-1172.22,0.00047123,31]
[312444897,1705876614079,-1046.22,0.00047123,31]
[312444898,1705876614112,-785.66,0.00047123,31]
[312444899,1705876614152,-500.0,0.00047123,31]
[312444900,1705876614187,-643.91,0.00047123,31]
[312444901,1705876614222,-501.64,0.00047123,31]
[312444902,1705876614256,-500.0,0.00047123,31]
[312444903,1705876614291,-500.0,0.00047123,31]
[312444904,1705876614326,-562.71,0.00047123,31]
[312444905,1705876614361,-552.21,0.00047123,31]
[312444906,1705876614396,-500.0,0.00047123,31]
[312444907,1705876614431,-708.83,0.00047123,31]
[312444908,1705876614466,-500.0,0.00047123,31]
[312444909,1705876614499,-1106.03,0.00047123,31]
[312444910,1705876614533,-645.89,0.00047123,31]
[312444911,1705876614566,-384.22858541,0.00047123,31]
[312444912,1705876614599,-646.94,0.00047123,31]
[312444913,1705876614632,-500.0,0.00047123,31]
[312444914,1705876614665,-500.0,0.00047123,31]
[312444915,1705876614699,-2098.17,0.00047123,31]
[312444916,1705876614733,-941.47,0.00047123,31]
[312444917,1705876614765,-500.0,0.00047123,31]
[312444918,1705876614800,-797.7,0.00047123,31]
[312444919,1705876614835,-635.48,0.00047123,31]
[312444920,1705876614867,-581.22,0.00047123,31]
[312444921,1705876614900,-1051.73,0.00047123,31]
[312444922,1705876614932,-611.42,0.00047123,31]
[312444923,1705876614964,-500.0,0.00047123,31]
[312444924,1705876614998,-992.54,0.00047123,31]
[312444925,1705876615035,-500.0,0.00047123,31]
[312444926,1705876615068,-565.87,0.00047123,31]
[312444927,1705876615102,-500.0,0.00047123,31]
[312444928,1705876615137,-588.35,0.00047123,31]
[312444929,1705876615171,-709.96,0.00047123,31]
[312444930,1705876615205,-500.0,0.00047123,31]
[312444931,1705876615241,-500.0,0.00047123,31]
[312444932,1705876615275,-679.91,0.00047123,31]
[312444933,1705876615309,-500.0,0.00047123,31]
[312444934,1705876615343,-826.78,0.00047123,31]
[312444935,1705876615377,-550.18,0.00047123,31]
[312444936,1705876615411,-1072.37,0.00047123,31]
[312444937,1705876615444,-500.0,0.00047123,31]
[312444938,1705876615478,-561.03,0.00047123,31]
[312444939,1705876615512,-722.05,0.00047123,31]
[312444940,1705876615546,-1048.9,0.00047123,31]
[312444941,1705876615579,-500.0,0.00047123,31]
[312444942,1705876615612,-500.32,0.00047123,31]
[312444943,1705876615645,-675.32,0.00047123,31]
[312444944,1705876615679,-574.76,0.00047123,31]
[312444945,1705876615712,-1933.9,0.00047123,31]
[312444946,1705876615746,-595.6,0.00047123,31]
[312444947,1705876615779,-500.0,0.00047123,31]
[312444948,1705876615813,-847.51,0.00047123,31]
[312444949,1705876615846,-583.74,0.00047123,31]
[312444950,1705876615880,-614.24,0.00047123,31]
[312444951,1705876615913,-500.0,0.00047123,31]
[312444952,1705876615947,-500.0,0.00047123,31]
[312444953,1705876615979,-500.0,0.00047123,31]
[312444954,1705876616013,-500.0,0.00047123,31]
[312444955,1705876616048,-640.11,0.00047123,31]
[312444956,1705876616091,-640.18,0.00047123,31]
[312444957,1705876616130,-503.74,0.00047123,31]
[312444958,1705876616166,-1125.5,0.00047123,31]
[312444959,1705876616200,-500.0,0.00047123,31]
[312444960,1705876616236,-553.42,0.00047123,31]
[312444961,1705876616271,-706.24,0.00047123,31]
[312444962,1705876616306,-500.0,0.00047123,31]
[312444963,1705876616340,-759.04,0.00047123,31]
[312444964,1705876616377,-500.0,0.00047123,31]
[312444965,1705876616414,-618.9,0.00047123,31]
[312444966,1705876616450,-620.1,0.00047123,31]
[312444967,1705876616483,-751.8,0.00047123,31]
[312444968,1705876616518,-596.28,0.00047123,31]
[312444969,1705876616552,-791.81,0.00047123,31]
[312444970,1705876616587,-9012.61,0.00047123,31]
[312444971,1705876616623,-1020.43,0.00047123,31]
[312444972,1705876616657,-730.33,0.00047123,31]
[312444973,1705876616691,-500.0,0.00047123,31]
[312444974,1705876616724,-500.0,0.00047123,31]
[312444975,1705876616757,-856.84,0.00047123,31]
[312444976,1705876616791,-500.0,0.00047123,31]
[312444977,1705876616826,-500.0,0.00047123,31]
[312444978,1705876616864,-735.19,0.00047123,31]
[312444979,1705876616898,-500.0,0.00047123,31]
[312444980,1705876616931,-500.0,0.00047123,31]
[312444981,1705876616966,-830.88,0.00047123,31]
[312444982,1705876617002,-2377.26,0.00047123,31]
[312444983,1705876617036,-766.87,0.00047123,31]
[312444984,1705876617075,-284.78051709,0.00047123,31]
[312444985,1705876617110,-500.0,0.00047123,31]
[312444986,1705876617146,-1112.8,0.00047123,31]
[312444987,1705876617184,-881.88,0.00047123,31]
[312444988,1705876617225,-1038.39,0.00047123,31]
[312444989,1705876617264,-641.2,0.00047123,31]
[312444990,1705876617301,-647.93,0.00047123,31]
[312444991,1705876617338,-666.36,0.00047123,31]
[312444992,1705876617534,-4639.17,0.00047123,31]
[312444993,1705876617573,-673.21,0.00047123,31]
[312444994,1705876617608,-3298.95,0.00047123,31]
[312444995,1705876617641,-992.34,0.00047123,31]
[312444996,1705876617674,-2034.53,0.00047123,31]
[312444997,1705876617709,-660.28,0.00047123,31]
[312444998,1705876617744,-500.0,0.00047123,31]
[312444999,1705876617781,-500.0,0.00047123,31]
[312445000,1705876617815,-500.0,0.00047123,31]
[312445001,1705876617850,-28036.98,0.00047123,31]
[312445002,1705876617885,-1938.75,0.00047123,31]
[312445003,1705876617920,-549.75,0.00047123,31]
[312445004,1705876617953,-903.34,0.00047123,31]
[312445005,1705876617988,-3123.65,0.00047123,31]
[312445006,1705876618021,-1216.46,0.00047123,31]
[312445007,1705876618059,-1029.32,0.00047123,31]
[312445008,1705876618093,-686.97,0.00047123,31]
[312445009,1705876618129,-1296.81,0.00047123,31]
[312445010,1705876618166,-2125.13,0.00047123,31]
[312445011,1705876618202,-1186.92,0.00047123,31]
[312445012,1705876618240,-2234.56,0.00047123,31]
[312445013,1705876618276,-1017.01,0.00047123,31]
[312445014,1705876618312,-1214.61,0.00047123,31]
[312445015,1705876618349,-500.0,0.00047123,31]
[312445016,1705876618385,-550.46,0.00047123,31]
[312445017,1705876618420,-980.04,0.00047123,31]
[312445018,1705876618455,-764.47,0.00047123,31]
[312445019,1705876618490,-500.0,0.00047123,31]
[312445020,1705876618525,-692.17,0.00047123,31]
[312445021,1705876618558,-589.26,0.00047123,31]
[312445022,1705876618591,-179.9362589,0.00047123,31]
[312445023,1705876618627,-4050.53,0.00047123,31]
[312445024,1705876618662,-790.3,0.00047123,31]
[312445025,1705876618697,-1409.68,0.00047123,31]
[312445026,1705876618730,-884.87,0.00047123,31]
[312445027,1705876618768,-500.0,0.00047123,31]
[312445028,1705876618813,-8615.3,0.00047123,31]
[312445029,1705876618853,-650.65,0.00047123,31]
[312445030,1705876618893,-1164.14,0.00047123,31]
[312445031,1705876618932,-509.39,0.00047123,31]
[312445032,1705876618967,-500.39,0.00047123,31]
[312445033,1705876619002,-1317.68,0.00047123,31]
[312445034,1705876619038,-500.0,0.00047123,31]
[312445035,1705876619074,-773.48,0.00047123,31]
[312445036,1705876619110,-500.0,0.00047123,31]
[312445037,1705876619151,-500.0,0.00047123,31]
[312445038,1705876619188,-500.0,0.00047123,31]
[312445039,1705876619226,-500.0,0.00047123,31]
[312445040,1705876619262,-687.04,0.00047123,31]
[312445041,1705876619298,-2437.34,0.00047123,31]
[312445042,1705876619334,-500.0,0.00047123,31]
[312445043,1705876619370,-2353.8,0.00047123,31]
[312445044,1705876619405,-2671.1,0.00047123,31]
[312445045,1705876619441,-1627.9,0.00047123,31]
[312445046,1705876619475,-500.0,0.00047123,31]
[312445047,1705876619509,-701.03,0.00047123,31]
[312445048,1705876619543,-744.64,0.00047123,31]
[312445049,1705876619577,-722.25,0.00047123,31]
[312445050,1705876619612,-1057.32,0.00047123,31]
[312445051,1705876619649,-2605.29,0.00047123,31]
[312445052,1705876619684,-500.0,0.00047123,31]
[312445053,1705876619722,-1869.91,0.00047123,31]
[312445054,1705876619759,-853.42,0.00047123,31]
[312445055,1705876619795,-628.07,0.00047123,31]
[312445056,1705876619830,-500.0,0.00047123,31]
[312445057,1705876619864,-500.0,0.00047123,31]
[312445058,1705876619897,-1463.45,0.00047123,31]
[312445059,1705876619932,-500.0,0.00047123,31]
[312445060,1705876619973,-738.08,0.00047123,31]
[312445061,1705876620010,-1856.37,0.00047123,31]
[312445062,1705876620046,-2717.95,0.00047123,31]
[312445063,1705876620087,-500.0,0.00047123,31]
[312445064,1705876620124,-671.9,0.00047123,31]
[312445065,1705876620161,-500.0,0.00047123,31]
[312445066,1705876620198,-3818.85,0.00047123,31]
[312445067,1705876620234,-576.78,0.00047123,31]
[312445068,1705876620271,-685.5,0.00047123,31]
[312445069,1705876620308,-1834.73,0.00047123,31]
[312445070,1705876620343,-782.28,0.00047123,31]
[312445071,1705876620377,-801.69,0.00047123,31]
[312445072,1705876620412,-7874.08,0.00047123,31]
[312445073,1705876620448,-508.28,0.00047123,31]
[312445074,1705876620484,-1665.66,0.00047123,31]
[312445075,1705876620520,-1435.39,0.00047123,31]
[312445076,1705876620556,-500.0,0.00047123,31]
[312445077,1705876620595,-3052.12,0.00047123,31]
[312445078,1705876620636,-1882.97,0.00047123,31]
[312445079,1705876620674,-500.0,0.00047123,31]
[312445080,1705876620708,-670.83,0.00047123,31]
[312445081,1705876620742,-1653.87,0.00047123,31]
[312445082,1705876620777,-500.0,0.00047123,31]
[312445083,1705876620812,-705.2,0.00047123,31]
[312445084,1705876620849,-782.76,0.00047123,31]
[312445085,1705876620885,-500.0,0.00047123,31]
[312445086,1705876620920,-500.0,0.00047123,31]
[312445087,1705876620955,-794.26,0.00047123,31]
[312445088,1705876620989,-711.05,0.00047123,31]
[312445089,1705876621028,-500.0,0.00047123,31]
[312445090,1705876621067,-1594.26,0.00047123,31]
[312445091,1705876621104,-3948.71,0.00047123,31]
[312445092,1705876621141,-1147.94,0.00047123,31]
[312445093,1705876621176,-500.0,0.00047123,31]
[312445094,1705876621213,-2653.24,0.00047123,31]
[312445095,1705876621448,-1622.79,0.00047123,31]
[312445096,1705876621490,-887.82,0.00047123,31]
[312445097,1705876621529,-2192.06,0.00047123,31]
[312445098,1705876621565,-500.19,0.00047123,31]
[312445099,1705876621599,-4489.98,0.00047123,31]
[312445100,1705876621634,-981.16,0.00047123,31]
[312445101,1705876621669,-500.0,0.00047123,31]
[312445102,1705876621702,-500.0,0.00047123,31]
[312445103,1705876621736,-500.0,0.00047123,31]
[312445104,1705876621770,-500.0,0.00047123,31]
[312445105,1705876621805,-529.53,0.00047123,31]
[312445106,1705876621840,-2135.06,0.00047123,31]
[312445107,1705876621875,-524.77,0.00047123,31]
[312445108,1705876621916,-636.52948893,0.00047123,31]
[312445109,1705876621954,-863.57,0.00047123,31]
[312445110,1705876621990,-1015.89,0.00047123,31]
[312445111,1705876622027,-528.03,0.00047123,31]
[312445112,1705876622065,-2514.68,0.00047123,31]
[312445113,1705876622103,-748.59,0.00047123,31]
[312445114,1705876622138,-1005.16,0.00047123,31]
[312445115,1705876622172,-100804.57,0.000472,30]
[312445116,1705876622207,-151.81777713,0.00047229,34]
[312445117,1705876622242,-597.78772165,0.00047397,30]
[312445118,1705876622275,-350.0,0.00047479,120]
[312445119,1705876622309,-616.504,0.000475,30]
[312445120,1705876622343,-500.0,0.00047671,31]
[312445121,1705876622376,-500.0,0.00047671,31]
[312445122,1705876622410,-568.04,0.00047671,31]
[312445123,1705876622443,-500.0,0.00047671,31]
[312445124,1705876622477,-523.93,0.00047671,31]
[312445125,1705876622511,-500.0,0.00047671,31]
[312445126,1705876622545,-500.0,0.00047671,31]
[312445127,1705876622580,-500.0,0.00047671,31]
[312445128,1705876622612,-300.48243921,0.00047671,31]
[312445129,1705876622645,-500.0,0.00047671,31]
[312445130,1705876622677,-500.0,0.00047671,31]
[312445131,1705876622710,-516.25,0.00047671,31]
[312445132,1705876622742,-372.0711529,0.00047671,31]
[312445133,1705876622774,-579.47,0.00047671,31]
[312445134,1705876622808,-500.0,0.00047671,31]
[312445135,1705876622840,-500.0,0.00047671,31]
[312445136,1705876622872,-500.0,0.00047671,31]
[312445137,1705876622905,-500.0,0.00047671,31]
[312445138,1705876622937,-500.0,0.00047671,31]
[312445139,1705876622971,-500.0,0.00047671,31]
[312445140,1705876623004,-500.0,0.00047671,31]
[312445141,1705876623039,-509.28,0.00047671,31]
[312445142,1705876623075,-500.0,0.00047671,31]
[312445143,1705876623113,-500.0,0.00047671,31]
[312445144,1705876623148,-500.0,0.00047671,31]
[312445145,1705876623184,-508.85,0.00047671,31]
[312445146,1705876623221,-608.21,0.00047671,31]
[312445147,1705876623254,-579.63,0.00047671,31]
[312445148,1705876623287,-500.0,0.00047671,31]
[312445149,1705876623322,-500.0,0.00047671,31]
[312445150,1705876623358,-598.31,0.00047671,31]
[312445151,1705876623392,-500.0,0.00047671,31]
[312445152,1705876623428,-500.0,0.00047671,31]
[312445153,1705876623464,-785.88,0.00047671,31]
[312445154,1705876623501,-529.13,0.00047671,31]
[312445155,1705876623536,-500.0,0.00047671,31]
[312445156,1705876623571,-500.0,0.00047671,31]
[312445157,1705876623606,-500.0,0.00047671,31]
[312445158,1705876623641,-194.4336691,0.00047671,31]
[312445159,1705876623677,-500.0,0.00047671,30]
[312445160,1705876623712,-500.0,0.00047671,31]
[312445161,1705876623744,-500.0,0.00047671,31]
[312445162,1705876623775,-500.0,0.00047671,31]
[312445163,1705876623806,-1369.47,0.00047671,31]
[312445164,1705876623838,-505.47,0.00047671,31]
[312445165,1705876623871,-806.13,0.00047671,31]
[312445166,1705876623903,-500.0,0.00047671,31]
[312445167,1705876623934,-500.0,0.00047671,31]
[312445168,1705876623965,-500.0,0.00047671,31]
[312445169,1705876623996,-707.32,0.00047671,31]
[312445170,1705876624030,-270.92885199,0.00047671,31]
[312445171,1705876624062,-500.0,0.00047671,31]
[312445172,1705876624095,-500.0,0.00047671,31]
[312445173,1705876624132,-500.0,0.00047671,31]
[312445174,1705876624166,-552.64,0.00047671,31]
[312445175,1705876624201,-500.0,0.00047671,31]
[312445176,1705876624238,-805.58,0.00047671,31]
[312445177,1705876624272,-272.59,0.00047671,31]
[312445178,1705876624305,-605.93,0.00047671,31]
[312445179,1705876624339,-1097.88,0.00047671,31]
[312445180,1705876624373,-268.08,0.00047671,30]
[312445181,1705876624406,-500.0,0.00047671,31]
[312445182,1705876624439,-845.1,0.00047671,31]
[312445183,1705876624473,-500.0,0.00047671,31]
[312445184,1705876624506,-788.32,0.00047671,31]
[312445185,1705876624539,-720.24,0.00047671,31]
[312445186,1705876624572,-521.41,0.00047671,31]
[312445187,1705876624606,-518.74,0.00047671,31]
[312445188,1705876624646,-500.0,0.00047671,31]
[312445189,1705876624677,-500.0,0.00047671,31]
[312445190,1705876624709,-500.0,0.00047671,31]
[312445191,1705876624745,-500.0,0.00047671,31]
[312445192,1705876624777,-500.0,0.00047671,31]
[312445193,1705876624810,-1173.58,0.00047671,31]
[312445194,1705876624842,-810.11,0.00047671,31]
[312445195,1705876624874,-547.76,0.00047671,31]
[312445196,1705876624909,-898.08,0.00047671,31]
[312445197,1705876624946,-500.0,0.00047671,31]
[312445198,1705876625143,-1249.82,0.00047671,31]
[312445199,1705876625185,-500.0,0.00047671,31]
[312445200,1705876625229,-644.21,0.00047671,31]
[312445201,1705876625273,-598.75,0.00047671,31]
[312445202,1705876625317,-500.0,0.00047671,31]
[312445203,1705876625360,-1092.57,0.00047671,31]
[312445204,1705876625400,-1011.23,0.00047671,31]
[312445205,1705876625439,-860.96,0.00047671,31]
[312445206,1705876625476,-500.0,0.00047671,31]
[312445207,1705876625511,-500.0,0.00047671,31]
[312445208,1705876625551,-166.25944494,0.00047671,31]
[312445209,1705876625586,-1118.43,0.00047671,31]
[312445210,1705876625621,-749.11,0.00047671,31]
[312445211,1705876625654,-500.0,0.00047671,31]
[312445212,1705876625687,-731.16,0.00047671,31]
[312445213,1705876625724,-723.92,0.00047671,31]
[312445214,1705876625759,-500.0,0.00047671,31]
[312445215,1705876625793,-457.8,0.00047671,31]
[312445216,1705876625830,-500.0,0.00047671,31]
[312445217,1705876625863,-500.0,0.00047671,31]
[312445218,1705876625895,-654.99,0.00047671,31]
[312445219,1705876625927,-1172.22,0.00047671,31]
[312445220,1705876625958,-1046.22,0.00047671,31]
[312445221,1705876625990,-785.66,0.00047671,31]
[312445222,1705876626023,-500.0,0.00047671,31]
[312445223,1705876626059,-643.91,0.00047671,31]
[312445224,1705876626090,-501.64,0.00047671,31]
[312445225,1705876626123,-500.0,0.00047671,31]
[312445226,1705876626157,-500.0,0.00047671,31]
[312445227,1705876626196,-562.71,0.00047671,31]
[312445228,1705876626230,-552.21,0.00047671,31]
[312445229,1705876626263,-500.0,0.00047671,31]
[312445230,1705876626296,-708.83,0.00047671,31]
[312445231,1705876626328,-500.0,0.00047671,31]
[312445232,1705876626361,-1106.03,0.00047671,31]
[312445233,1705876626394,-645.89,0.00047671,31]
[312445234,1705876626427,-646.94,0.00047671,31]
[312445235,1705876626459,-500.0,0.00047671,31]
[312445236,1705876626492,-500.0,0.00047671,31]
[312445237,1705876626525,-2098.17,0.00047671,31]
[312445238,1705876626558,-941.47,0.00047671,31]
[312445239,1705876626590,-500.0,0.00047671,31]
[312445240,1705876626622,-797.7,0.00047671,31]
[312445241,1705876626654,-635.48,0.00047671,31]
[312445242,1705876626687,-581.22,0.00047671,31]
[312445243,1705876626720,-1051.73,0.00047671,31]
[312445244,1705876626756,-611.42,0.00047671,31]
[312445245,1705876626792,-500.0,0.00047671,31]
[312445246,1705876626829,-992.54,0.00047671,31]
[312445247,1705876626863,-500.0,0.00047671,31]
[312445248,1705876626898,-565.87,0.00047671,31]
[312445249,1705876626930,-500.0,0.00047671,31]
[312445250,1705876626963,-588.35,0.00047671,31]
[312445251,1705876626994,-709.96,0.00047671,31]
[312445252,1705876627028,-500.0,0.00047671,31]
[312445253,1705876627067,-500.0,0.00047671,31]
[312445254,1705876627103,-679.91,0.00047671,31]
[312445255,1705876627142,-495.82353009,0.00047671,31]
[312445256,1705876627182,-826.78,0.00047671,31]
[312445257,1705876627225,-550.18,0.00047671,31]
[312445258,1705876627270,-1072.37,0.00047671,31]
[312445259,1705876627316,-561.03,0.00047671,31]
[312445260,1705876627359,-500.0,0.00047671,31]
[312445261,1705876627399,-722.05,0.00047671,31]
[312445262,1705876627437,-1048.9,0.00047671,31]
[312445263,1705876627473,-399.19,0.00047671,31]
[312445264,1705876627508,-500.32,0.00047671,31]
[312445265,1705876627540,-675.32,0.00047671,31]
[312445266,1705876627573,-574.76,0.00047671,31]
[312445267,1705876627608,-1933.9,0.00047671,31]
[312445268,1705876627641,-595.6,0.00047671,31]
[312445269,1705876627676,-500.0,0.00047671,31]